[Event "Late-Titled-Tuesday-Blitz-March-05-2024"]
[Site "Chess.com"]
[Date "2024.03.05"]
[Round "8"]
[White "prochn"]
[Black "Nouali_Mohamed"]
[Result "0-1"]
[WhiteElo "2402"]
[BlackElo "2541"]
[TimeControl "180+1"]
[EndTime "15:25:27 PST"]
[Termination "Nouali_Mohamed won by resignation"]

1. d4 {[%clk 0:03:00.9]} 1... Nf6 {[%clk 0:02:59.1]} 2. c4 {[%clk 0:03:00.9]}
2... g6 {[%clk 0:02:59.5]} 3. g3 {[%clk 0:03:01.3]} 3... Bg7 {[%clk 0:02:59.1]}
4. Bg2 {[%clk 0:03:01.8]} 4... O-O {[%clk 0:03:00]} 5. Nf3 {[%clk 0:03:01.5]}
5... d6 {[%clk 0:03:00.6]} 6. O-O {[%clk 0:03:01.7]} 6... c5 {[%clk 0:03:01.2]}
7. d5 {[%clk 0:03:00.6]} 7... b5 {[%clk 0:03:00.9]} 8. cxb5 {[%clk 0:02:57.9]}
8... a6 {[%clk 0:03:01.3]} 9. bxa6 {[%clk 0:02:55.5]} 9... Bxa6 {[%clk
0:03:02.2]} 10. Nc3 {[%clk 0:02:54.8]} 10... Nbd7 {[%clk 0:03:02.4]} 11. Rb1
{[%clk 0:02:45.8]} 11... Qa5 {[%clk 0:02:52.8]} 12. Qc2 {[%clk 0:02:42.6]} 12...
Nb6 {[%clk 0:02:42.9]} 13. Bd2 {[%clk 0:02:29.9]} 13... Nc4 {[%clk 0:02:42.3]}
14. Be1 {[%clk 0:02:24.2]} 14... Rfb8 {[%clk 0:02:40.2]} 15. Nd2 {[%clk
0:02:16.3]} 15... Ne5 {[%clk 0:01:38]} 16. Nf3 {[%clk 0:02:02.6]} 16... Nfd7
{[%clk 0:01:21.3]} 17. b3 {[%clk 0:01:47.6]} 17... Nxf3+ {[%clk 0:00:55.6]} 18.
Bxf3 {[%clk 0:01:47.6]} 18... Ne5 {[%clk 0:00:52.6]} 19. Bg2 {[%clk 0:01:48]}
19... h5 {[%clk 0:00:35]} 20. h3 {[%clk 0:01:42.6]} 20... Qa3 {[%clk 0:00:33.4]}
21. f4 {[%clk 0:01:07.2]} 21... Nd7 {[%clk 0:00:32.1]} 22. Kh2 {[%clk
0:00:59.4]} 22... c4 {[%clk 0:00:31.5]} 23. Rf3 {[%clk 0:00:44.8]} 23... cxb3
{[%clk 0:00:22.7]} 24. Rxb3 {[%clk 0:00:39.9]} 24... Rxb3 {[%clk 0:00:22.1]} 25.
Qxb3 {[%clk 0:00:39.3]} 25... Qxb3 {[%clk 0:00:18.6]} 26. axb3 {[%clk
0:00:40.2]} 26... Rb8 {[%clk 0:00:19.5]} 27. Na4 {[%clk 0:00:29]} 27... Kf8
{[%clk 0:00:10.9]} 28. e4 {[%clk 0:00:29.1]} 28... Bd4 {[%clk 0:00:06.4]} 29.
Bc3 {[%clk 0:00:23.9]} 29... Bxc3 {[%clk 0:00:05.2]} 30. Rxc3 {[%clk 0:00:24.8]}
30... Ke8 {[%clk 0:00:04.9]} 31. h4 {[%clk 0:00:22.7]} 31... Kd8 {[%clk
0:00:04.9]} 32. Bh3 {[%clk 0:00:22.9]} 32... Bb5 {[%clk 0:00:05.3]} 33. g4
{[%clk 0:00:20.6]} 33... hxg4 {[%clk 0:00:05.1]} 34. Bxg4 {[%clk 0:00:21.5]}
34... Bxa4 {[%clk 0:00:05.6]} 35. bxa4 {[%clk 0:00:21.5]} 35... Rb2+ {[%clk
0:00:06.5]} 36. Kg3 {[%clk 0:00:20.9]} 36... Nc5 {[%clk 0:00:06.8]} 37. e5
{[%clk 0:00:19.8]} 37... Ne4+ {[%clk 0:00:06.6]} 38. Kf3 {[%clk 0:00:14.3]}
38... Nxc3 {[%clk 0:00:07.5]} 0-1

[Event "Late-Titled-Tuesday-Blitz-March-05-2024"]
[Site "Chess.com"]
[Date "2024.03.05"]
[Round "8"]
[White "laziestwin"]
[Black "titomagno_64"]
[Result "1/2-1/2"]
[WhiteElo "2581"]
[BlackElo "2345"]
[TimeControl "180+1"]
[EndTime "15:25:28 PST"]
[Termination "Game drawn by repetition"]

1. d4 {[%clk 0:03:00.9]} 1... Nf6 {[%clk 0:02:51.6]} 2. c4 {[%clk 0:02:59.4]}
2... g6 {[%clk 0:02:50.4]} 3. Nf3 {[%clk 0:02:56.7]} 3... Bg7 {[%clk 0:02:49.1]}
4. Bf4 {[%clk 0:02:57.3]} 4... d5 {[%clk 0:02:48.6]} 5. e3 {[%clk 0:02:57]} 5...
O-O {[%clk 0:02:48.6]} 6. Nc3 {[%clk 0:02:56.6]} 6... c5 {[%clk 0:02:48]} 7.
dxc5 {[%clk 0:02:52.8]} 7... Qa5 {[%clk 0:02:46.2]} 8. cxd5 {[%clk 0:02:48.9]}
8... Nxd5 {[%clk 0:02:43.1]} 9. Be5 {[%clk 0:02:22.2]} 9... Nxc3 {[%clk
0:02:22.1]} 10. Qd2 {[%clk 0:02:14.8]} 10... Bxe5 {[%clk 0:02:16.4]} 11. Nxe5
{[%clk 0:02:14]} 11... Qxc5 {[%clk 0:02:16.9]} 12. Qxc3 {[%clk 0:02:07.3]} 12...
Qxc3+ {[%clk 0:02:13.3]} 13. bxc3 {[%clk 0:02:08.2]} 13... Nd7 {[%clk
0:02:09.9]} 14. Nxd7 {[%clk 0:02:01.7]} 14... Bxd7 {[%clk 0:02:10.8]} 15. O-O-O
{[%clk 0:02:01.9]} 15... Be6 {[%clk 0:01:58.7]} 16. Kb2 {[%clk 0:02:01.1]} 16...
Rac8 {[%clk 0:01:55.9]} 17. Rd4 {[%clk 0:01:59.6]} 17... Rc6 {[%clk 0:01:55.9]}
18. Be2 {[%clk 0:01:57]} 18... Rfc8 {[%clk 0:01:52.8]} 19. Rc1 {[%clk 0:01:55]}
19... Bc4 {[%clk 0:01:42.6]} 20. Bxc4 {[%clk 0:01:31.8]} 20... Rxc4 {[%clk
0:01:43.5]} 21. Rxc4 {[%clk 0:01:31.3]} 21... Rxc4 {[%clk 0:01:43.3]} 22. Rd1
{[%clk 0:01:32.2]} 22... Rc7 {[%clk 0:01:39.5]} 23. Kb3 {[%clk 0:01:30.6]} 23...
Kg7 {[%clk 0:01:39.9]} 24. c4 {[%clk 0:01:30.5]} 24... Kf6 {[%clk 0:01:37.5]}
25. Kb4 {[%clk 0:01:30.7]} 25... Ke6 {[%clk 0:01:37.5]} 26. c5 {[%clk
0:01:30.1]} 26... Rd7 {[%clk 0:01:35.3]} 27. Rxd7 {[%clk 0:00:38.9]} 27... Kxd7
{[%clk 0:01:36.2]} 28. Kb5 {[%clk 0:00:33.4]} 28... Kc7 {[%clk 0:01:26.5]} 29.
a4 {[%clk 0:00:26.3]} 29... a6+ {[%clk 0:01:22.2]} 30. Kb4 {[%clk 0:00:18.2]}
30... Kc6 {[%clk 0:01:23.1]} 31. Kc4 {[%clk 0:00:18.3]} 31... e6 {[%clk
0:01:22.7]} 32. f4 {[%clk 0:00:10]} 32... f6 {[%clk 0:01:22.6]} 33. h4 {[%clk
0:00:03.7]} 33... h6 {[%clk 0:01:22.5]} 34. g4 {[%clk 0:00:01.7]} 34... h5
{[%clk 0:01:22.7]} 35. gxh5 {[%clk 0:00:01.8]} 35... gxh5 {[%clk 0:01:23.6]} 36.
Kd4 {[%clk 0:00:02.1]} 36... Kd7 {[%clk 0:01:14.4]} 37. Kc4 {[%clk 0:00:01.4]}
37... Kc6 {[%clk 0:00:59.6]} 38. Kd4 {[%clk 0:00:02.3]} 38... b5 {[%clk
0:00:50.8]} 39. cxb6 {[%clk 0:00:01.7]} 39... Kxb6 {[%clk 0:00:50.4]} 40. Kc4
{[%clk 0:00:02.5]} 40... Kc6 {[%clk 0:00:44.3]} 41. Kb4 {[%clk 0:00:02.8]} 41...
Kb6 {[%clk 0:00:33.3]} 42. e4 {[%clk 0:00:02.6]} 42... a5+ {[%clk 0:00:25.1]}
43. Kc4 {[%clk 0:00:02.6]} 43... Kc6 {[%clk 0:00:25.8]} 44. Kd4 {[%clk
0:00:03.3]} 44... Kd6 {[%clk 0:00:25.9]} 45. e5+ {[%clk 0:00:04.1]} 45... fxe5+
{[%clk 0:00:25.6]} 46. fxe5+ {[%clk 0:00:05]} 46... Kc6 {[%clk 0:00:25.8]} 47.
Kc4 {[%clk 0:00:05]} 47... Kb6 {[%clk 0:00:26.4]} 48. Kd4 {[%clk 0:00:05.7]}
48... Kc6 {[%clk 0:00:27]} 49. Kc4 {[%clk 0:00:05.9]} 49... Kb6 {[%clk
0:00:21.3]} 50. Kd4 {[%clk 0:00:06]} 50... Kc6 {[%clk 0:00:21.9]} 1/2-1/2

[Event "Late-Titled-Tuesday-Blitz-March-05-2024"]
[Site "Chess.com"]
[Date "2024.03.05"]
[Round "8"]
[White "LangesNasenhaar"]
[Black "picturesquecheck"]
[Result "1-0"]
[WhiteElo "2529"]
[BlackElo "2409"]
[TimeControl "180+1"]
[EndTime "15:25:29 PST"]
[Termination "LangesNasenhaar won by resignation"]

1. d4 {[%clk 0:03:00.9]} 1... Nf6 {[%clk 0:02:59.2]} 2. Nc3 {[%clk 0:03:00.7]}
2... d5 {[%clk 0:02:59]} 3. Bf4 {[%clk 0:03:01.2]} 3... a6 {[%clk 0:02:58.4]} 4.
e3 {[%clk 0:03:01.4]} 4... g6 {[%clk 0:02:55.4]} 5. h4 {[%clk 0:02:57.9]} 5...
h5 {[%clk 0:02:53.3]} 6. Nf3 {[%clk 0:02:57.4]} 6... Bg7 {[%clk 0:02:53]} 7. Qd2
{[%clk 0:02:56.9]} 7... Nbd7 {[%clk 0:02:48]} 8. Ne5 {[%clk 0:02:56.7]} 8... c6
{[%clk 0:02:44.8]} 9. f3 {[%clk 0:02:57.1]} 9... Nxe5 {[%clk 0:02:36.6]} 10.
Bxe5 {[%clk 0:02:56.9]} 10... Qa5 {[%clk 0:02:35]} 11. O-O-O {[%clk 0:02:56]}
11... Bd7 {[%clk 0:02:32.3]} 12. Kb1 {[%clk 0:02:56]} 12... b5 {[%clk
0:02:31.6]} 13. Nxd5 {[%clk 0:02:43.1]} 13... Qxd2 {[%clk 0:02:26.2]} 14. Nc7+
{[%clk 0:02:43]} 14... Kd8 {[%clk 0:02:22.1]} 15. Rxd2 {[%clk 0:02:43.1]} 15...
Ra7 {[%clk 0:02:22.3]} 16. e4 {[%clk 0:02:28]} 16... Rxc7 {[%clk 0:02:20.1]} 17.
Bxc7+ {[%clk 0:02:28.1]} 17... Kxc7 {[%clk 0:02:21]} 18. c4 {[%clk 0:02:27]}
18... Rd8 {[%clk 0:01:55.1]} 19. Be2 {[%clk 0:02:24.9]} 19... Kb7 {[%clk
0:01:54.4]} 20. cxb5 {[%clk 0:02:22.1]} 20... axb5 {[%clk 0:01:50.6]} 21. Rhd1
{[%clk 0:02:18.9]} 21... Be8 {[%clk 0:01:50.7]} 22. a3 {[%clk 0:02:11.8]} 22...
e6 {[%clk 0:01:50.9]} 23. Rd3 {[%clk 0:01:59.5]} 23... Nd7 {[%clk 0:01:43]} 24.
R3d2 {[%clk 0:01:33]} 24... Nb6 {[%clk 0:01:41.7]} 25. b3 {[%clk 0:01:30.8]}
25... Bf8 {[%clk 0:01:36.5]} 26. Kb2 {[%clk 0:01:28.2]} 26... Ra8 {[%clk
0:01:36.5]} 27. Ra1 {[%clk 0:01:26.8]} 27... f5 {[%clk 0:01:33.8]} 28. g4 {[%clk
0:01:08.7]} 28... fxg4 {[%clk 0:01:21.3]} 29. fxg4 {[%clk 0:01:08.7]} 29... Be7
{[%clk 0:01:19.1]} 30. gxh5 {[%clk 0:01:03.1]} 30... gxh5 {[%clk 0:01:18.8]} 31.
Bf3 {[%clk 0:00:57.2]} 31... Bxh4 {[%clk 0:01:13.9]} 32. Rh2 {[%clk 0:00:38.8]}
32... Bf6 {[%clk 0:01:10.6]} 33. e5 {[%clk 0:00:38.8]} 33... Be7 {[%clk
0:01:07.4]} 34. Bxh5 {[%clk 0:00:38.9]} 34... Nd5 {[%clk 0:00:53.2]} 35. Bf3
{[%clk 0:00:33.5]} 35... Bg6 {[%clk 0:00:50]} 36. Rg2 {[%clk 0:00:31.2]} 36...
Rg8 {[%clk 0:00:37.3]} 37. Bxd5 {[%clk 0:00:27.2]} 37... cxd5 {[%clk 0:00:21.7]}
38. Rag1 {[%clk 0:00:26.9]} 38... Ra8 {[%clk 0:00:21.7]} 39. Rxg6 {[%clk
0:00:27]} 39... Bxa3+ {[%clk 0:00:21.1]} 40. Kc3 {[%clk 0:00:25.3]} 40... Rc8+
{[%clk 0:00:19]} 41. Kd3 {[%clk 0:00:25]} 41... Rc6 {[%clk 0:00:19.2]} 42. R1g2
{[%clk 0:00:21.3]} 42... b4 {[%clk 0:00:19.1]} 43. Rc2 {[%clk 0:00:20.3]} 43...
Rb6 {[%clk 0:00:17.4]} 44. Rg7+ {[%clk 0:00:18.6]} 44... Ka6 {[%clk 0:00:17.7]}
45. Rcc7 {[%clk 0:00:17.7]} 45... Bb2 {[%clk 0:00:17.3]} 46. Ra7+ {[%clk
0:00:16.8]} 46... Kb5 {[%clk 0:00:17.7]} 47. Rab7 {[%clk 0:00:16.7]} 1-0

[Event "Late-Titled-Tuesday-Blitz-March-05-2024"]
[Site "Chess.com"]
[Date "2024.03.05"]
[Round "8"]
[White "JSPrepz"]
[Black "Msb2"]
[Result "1-0"]
[WhiteElo "2863"]
[BlackElo "2992"]
[TimeControl "180+1"]
[EndTime "15:25:30 PST"]
[Termination "JSPrepz won by checkmate"]

1. c4 {[%clk 0:03:00.9]} 1... e6 {[%clk 0:03:00]} 2. g3 {[%clk 0:03:01.2]} 2...
d5 {[%clk 0:03:00.1]} 3. Bg2 {[%clk 0:03:02.1]} 3... Nf6 {[%clk 0:03:00.5]} 4.
Nf3 {[%clk 0:03:02.3]} 4... Nc6 {[%clk 0:03:01.2]} 5. O-O {[%clk 0:02:47.3]}
5... Bd6 {[%clk 0:03:01.2]} 6. b3 {[%clk 0:02:44.8]} 6... O-O {[%clk 0:03:01.4]}
7. Bb2 {[%clk 0:02:45]} 7... d4 {[%clk 0:03:02.1]} 8. e3 {[%clk 0:02:40.6]} 8...
e5 {[%clk 0:03:02.1]} 9. exd4 {[%clk 0:02:40.6]} 9... Nxd4 {[%clk 0:03:03]} 10.
Bxd4 {[%clk 0:02:34]} 10... exd4 {[%clk 0:03:03.9]} 11. d3 {[%clk 0:02:34.9]}
11... c5 {[%clk 0:03:01.3]} 12. Nbd2 {[%clk 0:02:33.1]} 12... Bf5 {[%clk
0:02:56.6]} 13. Qc2 {[%clk 0:02:32.8]} 13... Qd7 {[%clk 0:02:56.2]} 14. Rfe1
{[%clk 0:02:31.8]} 14... Rae8 {[%clk 0:02:52]} 15. b4 {[%clk 0:02:26]} 15...
cxb4 {[%clk 0:02:46.8]} 16. Nb3 {[%clk 0:02:24.5]} 16... Bg6 {[%clk 0:02:30.8]}
17. c5 {[%clk 0:02:02.4]} 17... Bc7 {[%clk 0:02:24.7]} 18. Nfxd4 {[%clk
0:02:02.7]} 18... Rxe1+ {[%clk 0:02:17.6]} 19. Rxe1 {[%clk 0:02:02.4]} 19... Re8
{[%clk 0:02:18.3]} 20. Rxe8+ {[%clk 0:01:58]} 20... Qxe8 {[%clk 0:02:19.2]} 21.
Bxb7 {[%clk 0:01:51]} 21... Qe1+ {[%clk 0:02:02.8]} 22. Kg2 {[%clk 0:01:51.2]}
22... h5 {[%clk 0:01:54.7]} 23. h4 {[%clk 0:01:42.1]} 23... Ng4 {[%clk
0:01:22.6]} 24. Nf3 {[%clk 0:01:39.5]} 24... Qe6 {[%clk 0:00:43]} 25. Be4 {[%clk
0:01:36.9]} 25... Bxe4 {[%clk 0:00:41.7]} 26. dxe4 {[%clk 0:01:36.9]} 26... a5
{[%clk 0:00:42]} 27. Nbd4 {[%clk 0:01:35.7]} 27... Qf6 {[%clk 0:00:41.9]} 28.
Nb5 {[%clk 0:01:31.5]} 28... Qc6 {[%clk 0:00:34.7]} 29. Nfd4 {[%clk 0:01:28.9]}
29... Qf6 {[%clk 0:00:12]} 30. c6 {[%clk 0:01:21.7]} 30... Be5 {[%clk
0:00:10.4]} 31. Nf3 {[%clk 0:01:14.5]} 31... Bb8 {[%clk 0:00:05.6]} 32. c7
{[%clk 0:01:09.5]} 32... Bxc7 {[%clk 0:00:06.2]} 33. Nxc7 {[%clk 0:01:10.4]}
33... Qb6 {[%clk 0:00:03.2]} 34. Nd5 {[%clk 0:01:09.4]} 34... Qb7 {[%clk
0:00:03.8]} 35. Qc8+ {[%clk 0:01:01.9]} 35... Qxc8 {[%clk 0:00:03.4]} 36. Ne7+
{[%clk 0:01:02.6]} 36... Kf8 {[%clk 0:00:04.3]} 37. Nxc8 {[%clk 0:01:03.5]}
37... a4 {[%clk 0:00:05.1]} 38. Nd4 {[%clk 0:00:59.9]} 38... Ne5 {[%clk
0:00:04.4]} 39. Nb6 {[%clk 0:00:56.1]} 39... b3 {[%clk 0:00:05]} 40. axb3 {[%clk
0:00:55.7]} 40... a3 {[%clk 0:00:05.7]} 41. Nc2 {[%clk 0:00:55.5]} 41... Nd3
{[%clk 0:00:05.9]} 42. Nxa3 {[%clk 0:00:54.4]} 42... Ne1+ {[%clk 0:00:04.5]} 43.
Kf1 {[%clk 0:00:53.6]} 43... Nf3 {[%clk 0:00:05.4]} 44. Nbc4 {[%clk 0:00:49.9]}
44... Nd4 {[%clk 0:00:05.5]} 45. b4 {[%clk 0:00:49.7]} 45... Ke7 {[%clk
0:00:06.4]} 46. b5 {[%clk 0:00:49.5]} 46... Ke6 {[%clk 0:00:07]} 47. b6 {[%clk
0:00:48.5]} 47... Kd7 {[%clk 0:00:07.5]} 48. b7 {[%clk 0:00:44.6]} 48... Kc7
{[%clk 0:00:08]} 49. Na5 {[%clk 0:00:44.8]} 49... Kb8 {[%clk 0:00:06.9]} 50.
N3c4 {[%clk 0:00:44.7]} 50... Nb5 {[%clk 0:00:06.1]} 51. Ne5 {[%clk 0:00:42.8]}
51... Na7 {[%clk 0:00:06.5]} 52. Nxf7 {[%clk 0:00:42]} 52... g5 {[%clk
0:00:06.1]} 53. hxg5 {[%clk 0:00:41.6]} 53... Kc7 {[%clk 0:00:06.8]} 54. g6
{[%clk 0:00:41.6]} 54... Kd7 {[%clk 0:00:07.1]} 55. b8=Q {[%clk 0:00:41.5]}
55... Nc8 {[%clk 0:00:08]} 56. g7 {[%clk 0:00:39.9]} 56... h4 {[%clk 0:00:08.9]}
57. g8=Q {[%clk 0:00:39.6]} 57... h3 {[%clk 0:00:09.8]} 58. Qbxc8+ {[%clk
0:00:39.5]} 58... Ke7 {[%clk 0:00:10.7]} 59. Qcd8+ {[%clk 0:00:39.6]} 59... Ke6
{[%clk 0:00:11.2]} 60. Qg6# {[%clk 0:00:38.8]} 1-0

[Event "Late-Titled-Tuesday-Blitz-March-05-2024"]
[Site "Chess.com"]
[Date "2024.03.05"]
[Round "8"]
[White "DeArron_Fox"]
[Black "Goryachkina"]
[Result "1-0"]
[WhiteElo "2561"]
[BlackElo "2691"]
[TimeControl "180+1"]
[EndTime "15:25:30 PST"]
[Termination "DeArron_Fox won by resignation"]

1. d4 {[%clk 0:03:00.9]} 1... Nf6 {[%clk 0:02:59.6]} 2. c4 {[%clk 0:03:00.7]}
2... e6 {[%clk 0:03:00]} 3. Nf3 {[%clk 0:03:00.4]} 3... d5 {[%clk 0:02:59.9]} 4.
Nc3 {[%clk 0:02:55.6]} 4... a6 {[%clk 0:02:58.5]} 5. cxd5 {[%clk 0:02:53.2]}
5... exd5 {[%clk 0:02:58.6]} 6. Bg5 {[%clk 0:02:43.4]} 6... Be6 {[%clk
0:02:57.1]} 7. Bxf6 {[%clk 0:02:20.5]} 7... Qxf6 {[%clk 0:02:56.4]} 8. Qb3
{[%clk 0:02:20.9]} 8... b5 {[%clk 0:02:50.9]} 9. a4 {[%clk 0:02:18.1]} 9... b4
{[%clk 0:02:33.5]} 10. Nxd5 {[%clk 0:02:17.4]} 10... Qd8 {[%clk 0:02:33]} 11. e4
{[%clk 0:02:16.5]} 11... c6 {[%clk 0:02:26.5]} 12. Qe3 {[%clk 0:02:16.5]} 12...
cxd5 {[%clk 0:02:19.3]} 13. exd5 {[%clk 0:02:17.4]} 13... Qxd5 {[%clk
0:02:18.8]} 14. Rc1 {[%clk 0:02:14.7]} 14... Be7 {[%clk 0:01:56.7]} 15. Bd3
{[%clk 0:01:53.7]} 15... Qd6 {[%clk 0:01:33.4]} 16. Be4 {[%clk 0:01:11.3]} 16...
Ra7 {[%clk 0:01:05.4]} 17. d5 {[%clk 0:01:10.9]} 17... Rd7 {[%clk 0:00:56.9]}
18. dxe6 {[%clk 0:00:42]} 18... Qxe6 {[%clk 0:00:56.6]} 19. Rc8+ {[%clk
0:00:39.1]} 19... Rd8 {[%clk 0:00:55.6]} 20. Rxd8+ {[%clk 0:00:37.4]} 20... Bxd8
{[%clk 0:00:52.7]} 21. Nd4 {[%clk 0:00:32]} 21... Qe7 {[%clk 0:00:25.7]} 22. Nf5
{[%clk 0:00:27.1]} 22... Qe5 {[%clk 0:00:05.3]} 23. f4 {[%clk 0:00:27.1]} 23...
Bb6 {[%clk 0:00:03.9]} 24. fxe5 {[%clk 0:00:21.6]} 24... Bxe3 {[%clk 0:00:03.4]}
25. Nxe3 {[%clk 0:00:22.5]} 25... Nd7 {[%clk 0:00:03.1]} 26. Bc6 {[%clk
0:00:18.9]} 26... Kd8 {[%clk 0:00:03]} 27. Bxd7 {[%clk 0:00:18.5]} 27... Kxd7
{[%clk 0:00:03.4]} 28. Ke2 {[%clk 0:00:18.4]} 28... Ke6 {[%clk 0:00:04]} 29. Rc1
{[%clk 0:00:15.6]} 29... Rd8 {[%clk 0:00:03.9]} 30. Rc6+ {[%clk 0:00:15.3]}
30... Kxe5 {[%clk 0:00:04.1]} 31. Rxa6 {[%clk 0:00:15.5]} 31... g6 {[%clk
0:00:04.7]} 32. Rb6 {[%clk 0:00:14.5]} 32... f5 {[%clk 0:00:04.9]} 33. Rxb4
{[%clk 0:00:13.1]} 33... f4 {[%clk 0:00:05.2]} 34. Nc4+ {[%clk 0:00:10.4]} 34...
Kf5 {[%clk 0:00:05.5]} 35. a5 {[%clk 0:00:09.6]} 35... g5 {[%clk 0:00:05.4]} 36.
a6 {[%clk 0:00:09.5]} 36... Re8+ {[%clk 0:00:03.6]} 37. Kf2 {[%clk 0:00:09.2]}
37... Ra8 {[%clk 0:00:03.3]} 38. Ra4 {[%clk 0:00:07]} 1-0

[Event "Late-Titled-Tuesday-Blitz-March-05-2024"]
[Site "Chess.com"]
[Date "2024.03.05"]
[Round "8"]
[White "sotochess"]
[Black "Qvalda"]
[Result "1-0"]
[WhiteElo "2585"]
[BlackElo "2434"]
[TimeControl "180+1"]
[EndTime "15:25:30 PST"]
[Termination "sotochess won on time"]

1. e4 {[%clk 0:03:00]} 1... e6 {[%clk 0:02:59.9]} 2. Qe2 {[%clk 0:02:58.8]} 2...
Nc6 {[%clk 0:02:57.2]} 3. Nf3 {[%clk 0:02:57.8]} 3... Be7 {[%clk 0:02:53.5]} 4.
g3 {[%clk 0:02:56.7]} 4... d5 {[%clk 0:02:52.5]} 5. d3 {[%clk 0:02:51.8]} 5...
dxe4 {[%clk 0:02:51.9]} 6. dxe4 {[%clk 0:02:51]} 6... e5 {[%clk 0:02:52.3]} 7.
Bg2 {[%clk 0:02:48.3]} 7... Nf6 {[%clk 0:02:51.2]} 8. O-O {[%clk 0:02:46.8]}
8... Bg4 {[%clk 0:02:50.8]} 9. c3 {[%clk 0:02:44.4]} 9... O-O {[%clk 0:02:50.1]}
10. h3 {[%clk 0:02:42.3]} 10... Be6 {[%clk 0:02:50.2]} 11. Rd1 {[%clk
0:02:38.9]} 11... Qe8 {[%clk 0:02:49.8]} 12. Ng5 {[%clk 0:02:39.1]} 12... Bd7
{[%clk 0:02:49.6]} 13. Nd2 {[%clk 0:02:32.9]} 13... h6 {[%clk 0:02:48.5]} 14.
Ngf3 {[%clk 0:02:31.7]} 14... Bd6 {[%clk 0:02:43.4]} 15. Nc4 {[%clk 0:02:30.5]}
15... Qe7 {[%clk 0:02:43.8]} 16. b4 {[%clk 0:02:18.1]} 16... a6 {[%clk
0:02:39.6]} 17. a4 {[%clk 0:02:15.9]} 17... Be6 {[%clk 0:02:38.7]} 18. Nh4
{[%clk 0:02:14.2]} 18... Rfd8 {[%clk 0:02:31.6]} 19. Be3 {[%clk 0:02:11.1]}
19... Kh7 {[%clk 0:02:22.6]} 20. Nf5 {[%clk 0:01:58.2]} 20... Bxf5 {[%clk
0:02:20.9]} 21. exf5 {[%clk 0:01:57.6]} 21... Rd7 {[%clk 0:01:58.3]} 22. g4
{[%clk 0:01:47.4]} 22... Rad8 {[%clk 0:01:56.9]} 23. b5 {[%clk 0:01:46.4]} 23...
axb5 {[%clk 0:01:56.2]} 24. axb5 {[%clk 0:01:45.7]} 24... Nb8 {[%clk 0:01:55.9]}
25. Bxb7 {[%clk 0:01:41.9]} 25... Bc5 {[%clk 0:01:54.1]} 26. Rxd7 {[%clk
0:01:32.9]} 26... Nfxd7 {[%clk 0:01:53.2]} 27. Bg2 {[%clk 0:01:23.2]} 27... Bxe3
{[%clk 0:01:52]} 28. Qxe3 {[%clk 0:01:22.6]} 28... f6 {[%clk 0:01:50.7]} 29. Na5
{[%clk 0:01:18.3]} 29... Nb6 {[%clk 0:01:48.6]} 30. c4 {[%clk 0:01:16.3]} 30...
Qb4 {[%clk 0:01:41.1]} 31. c5 {[%clk 0:01:04.8]} 31... Nc4 {[%clk 0:01:40.1]}
32. Nxc4 {[%clk 0:01:03.1]} 32... Qxc4 {[%clk 0:01:40.1]} 33. b6 {[%clk
0:01:03.2]} 33... cxb6 {[%clk 0:01:38.4]} 34. cxb6 {[%clk 0:01:02.9]} 34... Rd3
{[%clk 0:01:20.1]} 35. Bf1 {[%clk 0:00:54.2]} 35... Rxe3 {[%clk 0:01:08.4]} 36.
Bxc4 {[%clk 0:00:51.6]} 36... Rc3 {[%clk 0:01:08.3]} 37. Bd5 {[%clk 0:00:46.6]}
37... Nd7 {[%clk 0:01:02.8]} 38. b7 {[%clk 0:00:45.8]} 38... Rc5 {[%clk
0:01:00.7]} 39. Be4 {[%clk 0:00:43.7]} 39... Rc4 {[%clk 0:00:37.5]} 40. f3
{[%clk 0:00:41.9]} 40... Rb4 {[%clk 0:00:06.3]} 41. Ra8 {[%clk 0:00:40.2]} 41...
h5 {[%clk 0:00:01.9]} 42. Rd8 {[%clk 0:00:38.1]} 42... hxg4 {[%clk 0:00:01.5]}
43. hxg4 {[%clk 0:00:34.5]} 43... Kh6 {[%clk 0:00:01]} 44. Rxd7 {[%clk
0:00:33.7]} 44... Kg5 {[%clk 0:00:01.1]} 45. Rd8 {[%clk 0:00:32.1]} 45... Kf4
{[%clk 0:00:01.4]} 46. b8=Q {[%clk 0:00:31.9]} 1-0

[Event "Late-Titled-Tuesday-Blitz-March-05-2024"]
[Site "Chess.com"]
[Date "2024.03.05"]
[Round "8"]
[White "thesupera12"]
[Black "AndresDelgado77"]
[Result "1-0"]
[WhiteElo "2481"]
[BlackElo "2298"]
[TimeControl "180+1"]
[EndTime "15:25:30 PST"]
[Termination "thesupera12 won on time"]

1. e4 {[%clk 0:03:00.9]} 1... e6 {[%clk 0:02:54.2]} 2. b3 {[%clk 0:03:00]} 2...
d5 {[%clk 0:02:46.6]} 3. exd5 {[%clk 0:02:59.8]} 3... exd5 {[%clk 0:02:45.9]} 4.
Bb2 {[%clk 0:03:00.7]} 4... Nf6 {[%clk 0:02:34]} 5. Nf3 {[%clk 0:03:01]} 5...
Be7 {[%clk 0:02:08.6]} 6. Be2 {[%clk 0:02:58.1]} 6... O-O {[%clk 0:01:56.8]} 7.
O-O {[%clk 0:02:58.3]} 7... c5 {[%clk 0:01:42.6]} 8. d4 {[%clk 0:02:52.1]} 8...
Nc6 {[%clk 0:01:39.1]} 9. c4 {[%clk 0:02:49.8]} 9... Ne4 {[%clk 0:01:35.4]} 10.
cxd5 {[%clk 0:02:46.4]} 10... Qxd5 {[%clk 0:01:34.7]} 11. Bc4 {[%clk 0:02:42.6]}
11... Qh5 {[%clk 0:01:34.3]} 12. d5 {[%clk 0:02:35.6]} 12... Na5 {[%clk
0:01:04.1]} 13. Re1 {[%clk 0:02:29.5]} 13... Bf6 {[%clk 0:00:47.3]} 14. Bxf6
{[%clk 0:02:16.8]} 14... Nxf6 {[%clk 0:00:46.5]} 15. Re5 {[%clk 0:02:10.5]}
15... Qh6 {[%clk 0:00:40.1]} 16. Be2 {[%clk 0:02:01.8]} 16... Bg4 {[%clk
0:00:35.6]} 17. Nc3 {[%clk 0:01:51.2]} 17... Qf4 {[%clk 0:00:32.8]} 18. Re7
{[%clk 0:01:41.7]} 18... Rad8 {[%clk 0:00:25.7]} 19. h3 {[%clk 0:01:38.4]} 19...
Be6 {[%clk 0:00:22.9]} 20. Qe1 {[%clk 0:01:14.1]} 20... Bxd5 {[%clk 0:00:18.2]}
21. Re3 {[%clk 0:01:05.1]} 21... Nc6 {[%clk 0:00:16.2]} 22. Rc1 {[%clk
0:00:57.5]} 22... b6 {[%clk 0:00:13.1]} 23. g3 {[%clk 0:00:42.4]} 23... Qh6
{[%clk 0:00:12.2]} 24. h4 {[%clk 0:00:40.7]} 24... Bxf3 {[%clk 0:00:11.8]} 25.
Bxf3 {[%clk 0:00:40.7]} 25... Nd4 {[%clk 0:00:12.2]} 26. Bg2 {[%clk 0:00:41.2]}
26... Rfe8 {[%clk 0:00:10.6]} 27. Rxe8+ {[%clk 0:00:37.3]} 27... Rxe8 {[%clk
0:00:10.5]} 28. Qf1 {[%clk 0:00:37.9]} 28... Ng4 {[%clk 0:00:06.5]} 29. Re1
{[%clk 0:00:36.5]} 29... Rd8 {[%clk 0:00:04.7]} 30. Nd5 {[%clk 0:00:34.3]} 30...
Qd6 {[%clk 0:00:03.7]} 31. Qc4 {[%clk 0:00:28.4]} 31... Nf6 {[%clk 0:00:03.2]}
32. Nf4 {[%clk 0:00:26.4]} 32... h6 {[%clk 0:00:02.4]} 33. a3 {[%clk 0:00:15.8]}
33... Qd7 {[%clk 0:00:02.4]} 34. Kh2 {[%clk 0:00:15]} 34... Ng4+ {[%clk
0:00:01.9]} 35. Kg1 {[%clk 0:00:15]} 35... Qd6 {[%clk 0:00:01.1]} 36. b4 {[%clk
0:00:15]} 36... Ne5 {[%clk 0:00:01.3]} 37. bxc5 {[%clk 0:00:11.7]} 37... bxc5
{[%clk 0:00:01.3]} 38. Qc3 {[%clk 0:00:10.2]} 1-0